Cogmind - Beta 10.2 --- EXPLORER MODE // 2021.08.26 @ 19:53:26 // Halloween2020/ForbiddenLore Player: HexDSL Result: Destroyed by Y-45 Defender with Beam Rifle Performance ------------- Evolutions (2) 1000 Regions Visited (4) 800 Robots Destroyed (19) 95 Value Destroyed (587) 587 Prototype IDs (1) 20 Alien Tech Used (0) 0 Bonus (0) 0 TOTAL SCORE: 2502 Bonus ------- None Cogmind --------- Core Integrity 0/550 Matter 295/300 Energy 99/100 System Corruption 0% Temperature Cool (9) Movement Core (100) Ox1 Location -8/Materials Parts ------- > --- POWER (2) -------- (None) > --- PROPULSION (2) --- (None) > --- UTILITY (4) ------ Small Storage Unit Targeting Computer > --- WEAPON (4) ------- (None) > --- INVENTORY (6) ---- (None) Peak State ------------ > --- POWER ------------ (None) > --- PROPULSION ------- Light Treads Advanced Treads > --- UTILITY ---------- Heat Sink Targeting Computer Light Armor Plating > --- WEAPON ----------- Beam Rifle Assault Rifle Guided EMP Blaster > --- INVENTORY -------- Light Treads Light Assault Rifle Mining Laser [Rating: 22] Favorites ----------- Power Ion Engine Engine Ion Engine Power Core Light Nuclear Core Propulsion Light Treads Treads Light Treads Utility Light Armor Plating Device Heat Sink Storage Small Storage Unit Processor Targeting Computer Protection Light Armor Plating Weapon Assault Rifle Energy Gun Small Laser Ballistic Gun Assault Rifle Launcher Guided EMP Blaster Special Weapon Mining Laser Build | -11 -10 -9 -9 -8 ------- Run | Scr Mat Mat Sto Mat Slots Evolved 5 | . 1 2 . 2 Power 1 | . 1 . . . Propulsion . | . . . . . Utility 2 | . . 2 . . Weapon 2 | . . . . 2 Parts Attached 22 | 7 2 . 6 7 Power 4 | 1 1 . 1 1 Engine 3 | 1 1 . . 1 Core 1 | . . . 1 . Reactor . | . . . . . Propulsion 4 | 2 . . . 2 Treads 4 | 2 . . . 2 Leg . | . . . . . Wheel . | . . . . . Hover . | . . . . . Flight . | . . . . . Utility 8 | 2 1 . 4 1 Device 1 | . . . 1 . Storage 1 | . . . . 1 Processor 2 | 2 . . . . Hackware . | . . . . . Protection 4 | . 1 . 3 . Artifact . | . . . . . Weapon 6 | 2 . . 1 3 Energy Gun 2 | 1 . . 1 . Energy Cannon . | . . . . . Ballistic Gun 2 | 1 . . . 1 Ballistic Cannon . | . . . . . Launcher 1 | . . . . 1 Special Weapon 1 | . . . . 1 Impact Weapon . | . . . . . Slashing Weapon . | . . . . . Piercing Weapon . | . . . . . Special Melee Weapon . | . . . . . Unidentified Prototypes 1 | . . . . 1 Parts Lost 16 | . . . 5 11 Power 3 | . . . 2 1 Propulsion 3 | . . . . 3 Utility 4 | . . . 2 2 Weapon 6 | . . . 1 5 Highest Loss Streak 9 | . . . 3 9 Average Slot Usage (%) 79 | . 100 80 79 42 Engine 9 | . 25 20 5 . Core 1 | . . . 3 . Treads 19 | . 25 20 20 10 Device 4 | . . . 6 5 Processor 10 | . 13 10 10 8 Protection 13 | . 10 10 16 2 Energy Gun 8 | . 12 10 8 3 Ballistic Gun 9 | . 12 10 10 4 Naked Turns . | . . . . . Heaviest Build 20 | 8 16 16 20 19 Greatest Support 44 | 40 40 40 40 44 Greatest Overweight (x) 4 | . . . . 4 Average Overweight (x) . | . . . . . Largest Inventory Capacity 6 | 4 4 4 4 6 Average Capacity 4 | 4 4 4 4 4 Most Carried 4 | 4 4 4 4 4 Average Carried 3 | 1 3 4 3 2 Final Capacity 6 | 4 4 4 4 6 Final Carried 4 | 1 4 4 4 . Class Distribution -------------------- 100% | Hacker-Mutant Dominant Class ---------------- Hacker-Mutant | -10/Materials Hacker-Mutant | -9/Materials Hacker-Mutant | -9/Storage Hacker-Mutant | -8/Materials Resources | -11 -10 -9 -9 -8 ----------- Run | Scr Mat Mat Sto Mat Matter Collected 541 | 265 53 . 222 1 Remotely . | . . . . . Salvage Created 715 | . 93 . 622 . Parts 43 | . 1 . 42 . Haulers Intercepted . | . . . . . Recyclers Shooed 4 | . . . 4 . Parts Field Recycled . | . . . . . Retrieved Matter . | . . . . . Parts Self-Destructed . | . . . . . Prevented . | . . . . . Kills | -11 -10 -9 -9 -8 ------- Run | Scr Mat Mat Sto Mat Combat Hostiles Destroyed 18 | . 2 . 16 . Guns 18 | . 2 . 16 . Classes Destroyed 4 | . 1 . 3 . Watcher 1 | . . . 1 . Swarmer 5 | . . . 5 . Grunt 7 | . 2 . 5 . Sentry 6 | . . . 6 . Best Kill Streak 3 | . 1 . 3 . Combat Bots Only 3 | . 1 . 3 . Max Kills in Single Turn 1 | . 1 . 1 . Gunslinging . | . . . . . Exploded . | . . . . . Melee . | . . . . . Uniques/NPCs Destroyed . | . . . . . Combat | -11 -10 -9 -9 -8 -------- Run | Scr Mat Mat Sto Mat Damage Taken 2171 | . 81 . 639 1451 Core 638 | . 18 . 62 558 Absorbed by Shields . | . . . . . Core Remaining (%) 92 | 100 92 . 84 . Volleys Fired 74 | . 11 . 63 . Largest 2 | . 2 . 2 . Hottest 76 | . 60 . 76 . Shots Fired 135 | . 22 . 113 . Gun 135 | . 22 . 113 . Cannon . | . . . . . Launcher . | . . . . . Special . | . . . . . Kinetic 74 | . 11 . 63 . Thermal 61 | . 11 . 50 . Explosive . | . . . . . Electromagnetic . | . . . . . Robot Hit Streak 21 | . 12 . 21 . Robot Miss Streak 2 | . 1 . 2 . Penetration Max . | . . . . . Secondary Targets 2 | . . . 2 . Max Gunslinging Chain 1 | . . . 1 . Shots Hit Robots 99 | . 15 . 84 . Core Hits 38 | . 6 . 30 2 Critical Hits . | . . . . . Critical Kills . | . . . . . Critical Parts Destroyed . | . . . . . Melee Attacks . | . . . . . Impact . | . . . . . Slashing . | . . . . . Piercing . | . . . . . Sneak Attacks . | . . . . . Combat Hostiles . | . . . . . Follow-up Attacks . | . . . . . Damage Inflicted 1230 | 1 172 . 1037 20 Guns 1179 | . 169 . 1010 . Cannons . | . . . . . Explosions . | . . . . . Melee . | . . . . . Ramming 51 | 1 3 . 27 20 Kinetic 597 | . 72 . 525 . Thermal 582 | . 97 . 485 . Explosive . | . . . . . Electromagnetic . | . . . . . Impact . | . . . . . Slashing . | . . . . . Piercing . | . . . . . Highest Corruption 1 | . . . 1 . Average Corruption 1 | . . . 1 . Corruption Purged . | . . . . . Effects 3 | . . . 3 . Message Errors 2 | . . . 2 . Data Loss (minor) 1 | . . . 1 . Overload Shots . | . . . . . Overflow Damage . | . . . . . Projectiles . | . . . . . Explosions . | . . . . . Melee . | . . . . . Knockbacks . | . . . . . Impact . | . . . . . Kinetic . | . . . . . Secondary . | . . . . . Self-Inflicted Damage 7 | . . . . 7 Shots . | . . . . . Rammed 20 | 1 1 . 9 9 Targets Rammed 20 | 1 1 . 9 9 Kicked . | . . . . . Crushed . | . . . . . Highest Temperature 294 | . 123 . 294 5 Average Temperature 84 | . 45 . 97 5 Received Heat Transfer 1347 | . 51 . 330 966 Effects 1 | . . . 1 . Energy Bleed 1 | . . . 1 . Siege Activations . | . . . . . Robots Corrupted . | . . . . . Combat Hostiles . | . . . . . Parts Fried . | . . . . . Impact Corruptions . | . . . . . Robots Melted . | . . . . . Combat Hostiles . | . . . . . Parts Melted 3 | . . . 3 . Heat Transferred 1382 | . 225 . 1157 . Parts Sabotaged . | . . . . . Parts Stolen . | . . . . . Parts Stripped . | . . . . . Power Chain Reactions . | . . . . . Missiles Intercepted . | . . . . . Alert | -11 -10 -9 -9 -8 ------- Run | Scr Mat Mat Sto Mat Peak Influence 225 | . 65 . 225 37 Initial 37 | . . . . 37 Average 64 | . 25 . 95 22 Maximum Alert Level 1 | . . . 1 . Low Security (%) 93 | 100 100 100 89 100 Level 1 6 | . . . 10 . Level 2 . | . . . . . Level 3 . | . . . . . Level 4 . | . . . . . Level 5 . | . . . . . High Security . | . . . . . Max Security . | . . . . . Squads Dispatched 1 | . . . 1 . Investigation . | . . . . . Extermination . | . . . . . Reinforcement 1 | . . . 1 . Assault . | . . . . . Garrison . | . . . . . Intercept . | . . . . . Construction Impeded . | . . . . . Haulers Reinforced . | . . . . . Stealth | -11 -10 -9 -9 -8 --------- Run | Scr Mat Mat Sto Mat Distress Signals 4 | . 2 . 2 . Communications Jammed . | . . . . . Distress Signals . | . . . . . Times Spotted 36 | . 5 . 21 10 Peak Tracking Total 9 | . 2 . 4 9 Tactical Retreats 5 | . . . 5 . Traps | -11 -10 -9 -9 -8 ------- Run | Scr Mat Mat Sto Mat Traps Triggered 4 | . 1 . 3 . Indirectly . | . . . . . Trap Hack Attempts . | . . . . . Triggered . | . . . . . Disarmed . | . . . . . Reprogrammed . | . . . . . Reused . | . . . . . Traps Extracted . | . . . . . Installed . | . . . . . Triggered . | . . . . . Machines | -11 -10 -9 -9 -8 ---------- Run | Scr Mat Mat Sto Mat Machines Disabled . | . . . . . Max in Single Turn . | . . . . . Machines Sabotaged . | . . . . . Garrisons Compromised . | . . . . . Overloaded Fab Kills . | . . . . . Fab Network Shutdowns . | . . . . . Hacking | -11 -10 -9 -9 -8 --------- Run | Scr Mat Mat Sto Mat Machines Accessed 4 | . 1 . 3 . Terminals 3 | . . . 3 . Fabricators . | . . . . . Repair Stations . | . . . . . Recycling Units 1 | . 1 . . . Scanalyzers . | . . . . . Garrison Access . | . . . . . Total Hacks 8 | . 2 . 6 . Successful 5 | . 1 . 4 . Failed 3 | . 1 . 2 . Catastrophic . | . . . . . Database Lockouts . | . . . . . Manual . | . . . . . Terminals 6 | . . . 6 . Fabricators . | . . . . . Repair Stations . | . . . . . Recycling Units 2 | . 2 . . . Scanalyzers . | . . . . . Garrison Access . | . . . . . Terminal Hacks 4 | . . . 4 . Part Schematic 1 | . . . 1 . Open Door 2 | . . . 2 . Hauler Manifests 1 | . . . 1 . Fabricator Hacks . | . . . . . Repair Station Hacks . | . . . . . Recycling Unit Hacks 1 | . 1 . . . Retrieve Matter 1 | . 1 . . . Scanalyzer . | . . . . . Garrison Access Hacks . | . . . . . Unauthorized Hacks . | . . . . . Terminals . | . . . . . Fabricators . | . . . . . Repair Stations . | . . . . . Recycling Units . | . . . . . Scanalyzers . | . . . . . Garrison Access . | . . . . . Data Cores Recovered . | . . . . . Used . | . . . . . Hacking Detections 2 | . 1 . 1 . Full Trace Events . | . . . . . Feedback Events . | . . . . . Feedback Blocked . | . . . . . Robot Schematics Acquired . | . . . . . Robots Built . | . . . . . Matter . | . . . . . Time . | . . . . . Total Robot Build Rating . | . . . . . Part Schematics Acquired 1 | . . . 1 . Parts Built . | . . . . . Matter . | . . . . . Time . | . . . . . Total Part Build Rating . | . . . . . Parts Repaired . | . . . . . Time . | . . . . . Parts Recycled . | . . . . . Recycled Matter . | . . . . . Retrieved Matter . | . . . . . Retrieved Components . | . . . . . Parts Scanalyzed . | . . . . . Part Schematics Acquired . | . . . . . Parts Damaged . | . . . . . Bothacking | -11 -10 -9 -9 -8 ------------ Run | Scr Mat Mat Sto Mat Used RIF Installer . | . . . . . Robots Hacked . | . . . . . Non-combat . | . . . . . Combat . | . . . . . Robot Hacks Applied . | . . . . . Relay Couplers Released . | . . . . . Robots Rewired . | . . . . . Allies Hacked . | . . . . . Hacks Repelled . | . . . . . Allies | -11 -10 -9 -9 -8 -------- Run | Scr Mat Mat Sto Mat Total Allies . | . . . . . Largest Group . | . . . . . Highest-Rated Group . | . . . . . Highest-Rated Ally . | . . . . . Total Orders . | . . . . . Ally Attacks . | . . . . . Total Damage . | . . . . . Kills . | . . . . . Allies Corrupted . | . . . . . Allies Melted . | . . . . . Intel | -11 -10 -9 -9 -8 ------- Run | Scr Mat Mat Sto Mat Robot Analysis Total . | . . . . . Derelict Logs Recovered . | . . . . . Drone Launches . | . . . . . Drone Recoveries . | . . . . . Exploration | -11 -10 -9 -9 -8 ------------- Run | Scr Mat Mat Sto Mat Turns Passed 1999 | 98 442 12 1182 265 Spaces Moved 1114 | 71 249 8 614 172 Core 77 | 28 . . . 49 Treads 1037 | 43 249 8 614 123 Legs . | . . . . . Wheels . | . . . . . Hover . | . . . . . Flight . | . . . . . Fastest Speed 50 | 50 160 160 160 100 Average Speed 154 | 116 160 160 160 141 Slowest Speed 250 | 160 160 160 160 250 Overloaded Moves . | . . . . . Propulsion Burnouts . | . . . . . Robots Hopped . | . . . . . Cave-ins Triggered . | . . . . . Exploration Rate (%) 25 | 4 40 2 58 22 Regions Visited 4 Branch Regions 1 Pre-discovered Areas . | . . . . . Known Exits Taken 4 | 1 1 1 1 . Unknown Exits Taken . | . . . . . Scrap Searched . | . . . . . Spaces Dug . | . . . . . Terrain Destroyed . | . . . . . Melee . | . . . . . Projectile . | . . . . . AOE . | . . . . . Terrain Rammed . | . . . . . Walls Destroyed . | . . . . . Machines Disabled . | . . . . . Actions | -11 -10 -9 -9 -8 --------- Run | Scr Mat Mat Sto Mat Total 1255 | 86 272 7 696 194 Wait . | . . . . . Move 1110 | 70 248 7 613 172 Hop . | . . . . . Pick Up 22 | 8 7 . 3 4 Fast Attach 1 | . . . 1 . Attach 21 | 7 2 . 5 7 Detach 3 | . 1 . 1 1 Swap . | . . . . . Drop 4 | . 2 . 1 1 Fire 74 | . 11 . 63 . Melee . | . . . . . Ram 5 | . . . . 5 Kick . | . . . . . Crush 15 | 1 1 . 9 4 Escape Stasis . | . . . . . Rewire . | . . . . . Trap . | . . . . . Miscellaneous . | . . . . . Route ------- -11/Scrapyard -10/Materials -9/Materials -9/Storage -8/Materials History --------- Turn | Location | Event 17 | -11/Scrapyard | Identified exit to Materials 17 | -11/Scrapyard | Discovered exit to Materials (range 16) 99 | -11/Scrapyard | Entered Materials 99 | -10/Materials | Evolved 1 slot: Power x1 169 | -10/Materials | Met 8R-AWN 317 | -10/Materials | Build established: Hacker-Mutant 404 | -10/Materials | Identified exit to Materials 404 | -10/Materials | Discovered exit to Materials (range 10) 541 | -10/Materials | Entered another Materials area 541 | -9/Materials | Evolved 2 slots: Utility x2 541 | -9/Materials | Identified exit to Storage 541 | -9/Materials | Discovered exit to Storage (range 7) 553 | -9/Materials | Entered Storage 1094 | -9/Storage | Lost 3 parts (2p1w) 1721 | -9/Storage | Identified exit to Materials 1721 | -9/Storage | Discovered exit to Materials (range 7) 1735 | -9/Storage | Entered Materials 1735 | -8/Materials | Evolved 2 slots: Weapon x2 1974 | -8/Materials | Lost 9 parts (3n1u5w) 1976 | -8/Materials | Core integrity fell below 50% 1994 | -8/Materials | Core integrity fell below 20% 2000 | -8/Materials | Destroyed by Y-45 Defender with Beam Rifle Last Messages --------------- Slammed into G-47 Trooper. Slammed into G-50 Soldier. Heat Sink destroyed. Acquired 1 matter. Mining Laser destroyed. Electrolysis Chamber disabled. Slammed into Y-45 Defender. Adv. Treads destroyed. Slammed into Y-45 Defender. Lgt. Assault Rifle destroyed. K-01 Serf collects debris. Slammed into G-47 Trooper. Acquired Deuterium Engine. Fusion Modulator explodes. Slug penetrates Wall. U-05 Engineer builds a Wall. Deuterium Engine destroyed. U-05 Engineer lays Concrete. Slug penetrates Wall. U-05 Engineer lays Concrete. Map ----- +----------------------------------------------------+ | ??????????????????????????????? | | ??????????????????????????????? | | ??????????????????????????????? | | ??????????????????????????????? | | ??????????????????????????????? | | ??????????????????????????????? | | ??????????????????????????????? | | ??????????????????????????????? | | ??????????????????????????????? | | ?? ?????## ##?????????????????? | | ?T ?! ? ????????????????? | | #" ? # #???????????????? | | # ? # !??????????????? | | # + ???????????????? | | # """ # ???????????????? | | # """ # ????????????????? | | # """ #? ????????????????? | | # #?# #?????????????????? | | #* #?# #?????????????????? | | # ### #????????########## | | ;;;;;;; ; #????????# | | ;;;;;;;;#Y ##?####### | | ; ; uYu #?# # | | ; ; Y ### # | | ; ; %g + | | ; @; g ### # | | ; ]; ! Y #?# # | | ; ;;# ###?## ## | | ;;;;;;;;;#+#????# ####/###### | | ##;Y ?????# #??# #????? | | ?# ! ???# #??# #????? | | ?## ! ?# #??# #????? | | ??# """"" # #??# ###### | | ??# """"""""" # #??# # | | ??# """ """ + #??# # "" | | ??############### #??# # "R | | ?????????# #### #! " | | ?????????# # | | ?????????# / = | | ?????????# !!! # | | ?????????# ! ! ### "" | | ?????????# !! #?# """ | | ?????????# #?# """ | | ?????????# #?# | | ?????????# #?###### | | ?????????# """"" #??????? | | ?????????# """"" #??????? | | ?????????# """" #??????? | | ?????????+ #??????? | | ?????????# +??????? | +----------------------------------------------------+ Best States ------------- Heat Dissipation 41 Energy Generation 19 Energy Capacity 400 Matter Stores 300 Matter Capacity 300 Sight Range 16 Terrain Scan Density 60 Armor Coverage 300 Resistance: KI 35 Resistance: TH 35 Resistance: EX 35 Resistance: EM 35 Resistance: I 35 Resistance: S 35 Resistance: P 35 Evasion (%) 50 Targeting Accuracy 5 Recoil Reduction 2 Offensive Hacking 20 Item Schematics ----------------- Minigun | -9/Storage | Hacked Robot Schematics ------------------ None Fabricated ------------ Nothing Alien Tech Used ----------------- None Achievements -------------- None Challenges ------------ None Game ------ Seed BiomechanicalPlasmaTerrabomb Manual? 0 Play Time 00:19:59 Cumulative 8.3 hours Start 2020.11.09 @ 13:03:42 End 2021.08.26 @ 19:53:26 Sessions 2 Manual Loads 0 Difficulty Explorer Special Mode Halloween2020/ForbiddenLore Game No. 24 Rogue 0 Adventurer 0 Explorer 24 Win Type - Total 0 Types 0/0/0/0/0/0/0/0/0 Lore% 6 Gallery% 17 Achievement% 16 Wizard Run 0 Options --------- ASCII 0 Keyboard 1 Movement Vi Keybinds 0 Fullscreen 2 Font 24/Smallcaps Map View 113x50 Tactical HUD 0 Map Filters NONE Filters NONE Steam 1 RUN: 4864eac9-a4fd-4227-bdb3-1be2c38c4321